[Event "32nd NATO Chess Championship"]
[Site "Tartu, Estonia"]
[Date "2022.06.28"]
[Round "2.10"]
[White "Bohn, Ulrich"]
[Black "Stankowski, Aleksander"]
[Result "1-0"]
[TimeControl "90 min + 30 sec increment from move one"]
[WhiteFideId "4656105"]
[BlackFideId "1137603"]
[WhiteElo "2168"]
[BlackElo "1971"]

1. d4 {[%clk 01:30:47]} {[%emt 00:00:12]} Nf6 {[%clk 01:30:41]} {[%emt
00:00:20]} 2. Bf4 {[%clk 01:31:12]} {[%emt 00:00:05]} g6 {[%clk 01:31:04]}
{[%emt 00:00:07]} 3. Nc3 {[%clk 01:31:37]} {[%emt 00:00:05]} d5 {[%clk
01:31:03]} {[%emt 00:00:31]} 4. e3 {[%clk 01:32:01]} {[%emt 00:00:06]} Bg7
{[%clk 01:31:01]} {[%emt 00:00:31]} 5. h4 {[%clk 01:32:25]} {[%emt 00:00:07]}
O-O {[%clk 01:26:05]} {[%emt 00:05:26]} 6. h5 {[%clk 01:32:20]} {[%emt
00:00:35]} Nxh5 {[%clk 01:23:34]} {[%emt 00:03:01]} 7. Rxh5 {[%clk 01:32:30]}
{[%emt 00:00:20]} gxh5 {[%clk 01:23:40]} {[%emt 00:00:23]} 8. Qxh5 {[%clk
01:32:55]} {[%emt 00:00:06]} f5 {[%clk 01:14:29]} {[%emt 00:09:40]} 9. Nf3
{[%clk 01:28:10]} {[%emt 00:05:15]} c6 {[%clk 01:05:20]} {[%emt 00:09:40]} 10.
Bd3 {[%clk 01:11:05]} {[%emt 00:17:35]} Qe8 {[%clk 00:49:49]} {[%emt 00:16:00]}
11. Qh2 {[%clk 00:53:00]} {[%emt 00:18:36]} Nd7 {[%clk 00:46:33]} {[%emt
00:03:46]} 12. g4 {[%clk 00:41:29]} {[%emt 00:12:01]} Nf6 {[%clk 00:40:37]}
{[%emt 00:06:26]} 13. Ne5 {[%clk 00:35:41]} {[%emt 00:06:18]} fxg4 {[%clk
00:37:44]} {[%emt 00:03:23]} 14. O-O-O {[%clk 00:35:03]} {[%emt 00:01:08]} Qh5
{[%clk 00:35:22]} {[%emt 00:02:51]} 15. Qg2 {[%clk 00:31:52]} {[%emt 00:03:41]}
Qh3 {[%clk 00:34:29]} {[%emt 00:01:22]} 16. Qg1 {[%clk 00:32:47]} {[%emt
00:00:07]} Nh5 {[%clk 00:27:13]} {[%emt 00:08:16]} 17. Bg5 {[%clk 00:28:31]}
{[%emt 00:04:45]} g3 {[%clk 00:23:23]} {[%emt 00:04:20]} 18. f4 {[%clk
00:25:16]} {[%emt 00:03:46]} Re8 {[%clk 00:18:13]} {[%emt 00:05:40]} 19. Qh1
{[%clk 00:19:53]} {[%emt 00:05:52]} g2 {[%clk 00:16:10]} {[%emt 00:02:33]} 20.
Qxh3 {[%clk 00:19:43]} {[%emt 00:00:41]} Bxh3 {[%clk 00:16:37]} {[%emt
00:00:03]} 21. Ne2 {[%clk 00:19:55]} {[%emt 00:00:16]} Bxe5 {[%clk 00:11:13]}
{[%emt 00:05:56]} 22. dxe5 {[%clk 00:20:06]} {[%emt 00:00:19]} e6 {[%clk
00:08:34]} {[%emt 00:03:08]} 23. Ng1 {[%clk 00:19:35]} {[%emt 00:01:02]} Bf5
{[%clk 00:08:47]} {[%emt 00:00:17]} 24. Bxf5 {[%clk 00:19:31]} {[%emt
00:00:34]} exf5 {[%clk 00:09:12]} {[%emt 00:00:05]} 25. Rd2 {[%clk 00:19:56]}
{[%emt 00:00:05]} Kf7 {[%clk 00:06:28]} {[%emt 00:03:13]} 26. Rxg2 {[%clk
00:20:20]} {[%emt 00:00:07]} Rg8 {[%clk 00:06:24]} {[%emt 00:00:34]} 27. Rh2
{[%clk 00:19:19]} {[%emt 00:01:31]} h6 {[%clk 00:06:41]} {[%emt 00:00:14]} 28.
Rxh5 {[%clk 00:17:55]} {[%emt 00:01:53]} hxg5 {[%clk 00:07:04]} {[%emt
00:00:06]} 29. Nf3 {[%clk 00:18:06]} {[%emt 00:00:19]} c5 {[%clk 00:04:20]}
{[%emt 00:03:15]} 30. Nxg5+ {[%clk 00:18:16]} {[%emt 00:00:19]} Kg6 {[%clk
00:03:55]} {[%emt 00:00:55]} 31. Rh1 {[%clk 00:18:35]} {[%emt 00:00:10]} Rh8
{[%clk 00:04:03]} {[%emt 00:00:25]} 32. Rg1 {[%clk 00:19:00]} {[%emt 00:00:04]}
Rh4 {[%clk 00:04:09]} {[%emt 00:00:23]} 33. Rd1 {[%clk 00:18:26]} {[%emt
00:01:05]} d4 {[%clk 00:03:17]} {[%emt 00:01:21]} 34. exd4 {[%clk 00:17:07]}
{[%emt 00:01:49]} Rxf4 {[%clk 00:03:12]} {[%emt 00:00:36]} 35. Ne6 {[%clk
00:17:32]} {[%emt 00:00:05]} Rf2 {[%clk 00:02:58]} {[%emt 00:00:43]} 36. d5
{[%clk 00:16:16]} {[%emt 00:01:46]} f4 {[%clk 00:01:43]} {[%emt 00:01:45]} 37.
d6 {[%clk 00:15:10]} {[%emt 00:01:37]} Kf5 {[%clk 00:01:32]} {[%emt 00:00:41]}
38. Nxc5 {[%clk 00:15:27]} {[%emt 00:00:12]} Re2 {[%clk 00:00:47]} {[%emt
00:01:16]} 39. Nd3 {[%clk 00:01:17]} {[%emt 00:14:40]} Rd8 {[%clk 00:00:48]}
{[%emt 00:00:29]} 40. Rf1 {[%clk 00:01:38]} {[%emt 00:00:08]} Re4 {[%clk
00:00:46]} {[%emt 00:00:31]} 41. Kd2 {[%clk 00:01:48]} {[%emt 00:00:21]} b6
{[%clk 00:00:40]} {[%emt 00:00:37]} 42. b3 {[%clk 00:02:15]} {[%emt 00:00:04]}
Ke6 {[%clk 00:00:37]} {[%emt 00:00:32]} 43. Rh1 {[%clk 00:01:20]} {[%emt
00:01:25]} f3 {[%clk 00:00:40]} {[%emt 00:00:27]} 44. Rh6+ {[%clk 00:01:43]}
{[%emt 00:00:07]} Kd5 {[%clk 00:00:49]} {[%emt 00:00:20]} 45. Rf6 {[%clk
00:02:09]} {[%emt 00:00:04]} Re2+ {[%clk 00:00:40]} {[%emt 00:00:40]} 46. Kd1
{[%clk 00:02:37]} {[%emt 00:00:01]} Rxe5 {[%clk 00:00:32]} {[%emt 00:00:39]} 47.
Nxe5 {[%clk 00:02:30]} {[%emt 00:00:37]} Kxe5 {[%clk 00:01:01]} 48. Rxf3 {[%clk
00:02:49]} {[%emt 00:00:11]} Rxd6+ {[%clk 00:01:19]} {[%emt 00:00:12]} 49. Rd3
{[%clk 00:03:15]} {[%emt 00:00:04]} Rc6 {[%clk 00:01:07]} {[%emt 00:00:41]} 50.
a4 {[%clk 00:03:33]} {[%emt 00:00:13]} a5 {[%clk 00:01:07]} {[%emt 00:00:30]}
51. Kd2 {[%clk 00:03:14]} {[%emt 00:00:49]} Rh6 {[%clk 00:01:26]} {[%emt
00:00:10]} 52. Kc3 {[%clk 00:03:26]} {[%emt 00:00:18]} Rc6+ {[%clk 00:01:51]}
{[%emt 00:00:06]} 53. Kb2 {[%clk 00:03:35]} {[%emt 00:00:20]} Rh6 {[%clk
00:02:09]} {[%emt 00:00:12]} 54. Rd2 {[%clk 00:03:54]} {[%emt 00:00:11]} Rc6
{[%clk 00:02:13]} {[%emt 00:00:27]} 55. c4 {[%clk 00:03:34]} {[%emt 00:00:50]}
Rh6 {[%clk 00:02:25]} {[%emt 00:00:17]} 56. Rd3 {[%clk 00:03:39]} {[%emt
00:00:25]} Rg6 {[%clk 00:01:54]} {[%emt 00:01:02]} 57. Kc3 {[%clk 00:04:00]}
{[%emt 00:00:08]} Rh6 {[%clk 00:00:36]} {[%emt 00:01:49]} 58. b4 {[%clk
00:03:57]} {[%emt 00:00:33]} Ke4 {[%clk 00:00:34]} {[%emt 00:00:32]} 59. Rd4+
{[%clk 00:03:47]} {[%emt 00:00:39]} Ke3 {[%clk 00:00:45]} {[%emt 00:00:20]} 60.
bxa5 {[%clk 00:04:04]} {[%emt 00:00:13]} bxa5 {[%clk 00:01:07]} {[%emt
00:00:08]} 61. Rd5 {[%clk 00:04:24]} {[%emt 00:00:10]} Ra6 {[%clk 00:00:41]}
{[%emt 00:00:56]} 62. Re5 {[%clk 00:04:49]} {[%emt 00:00:05]} Kf4 {[%clk
00:01:04]} {[%emt 00:00:06]} 63. Re8 {[%clk 00:05:02]} {[%emt 00:00:18]} Rc6
{[%clk 00:00:45]} {[%emt 00:00:47]} 64. Kd4 {[%clk 00:04:36]} {[%emt 00:00:57]}
Kf5 {[%clk 00:00:32]} {[%emt 00:00:43]} 65. Kd5 {[%clk 00:04:54]} {[%emt
00:00:12]} Rb6 {[%clk 00:00:33]} {[%emt 00:00:30]} 66. Ra8 {[%clk 00:04:40]}
{[%emt 00:00:43]} Kf6 {[%clk 00:00:51]} {[%emt 00:00:12]} 67. c5 {[%clk
00:04:27]} {[%emt 00:00:43]} Rb1 {[%clk 00:01:10]} {[%emt 00:00:11]} 68. Kd6
{[%clk 00:04:01]} {[%emt 00:00:56]} Rd1+ {[%clk 00:01:24]} {[%emt 00:00:17]} 69.
Kc7 {[%clk 00:04:27]} {[%emt 00:00:04]} Ke7 {[%clk 00:01:33]} {[%emt 00:00:20]}
70. c6 {[%clk 00:03:56]} {[%emt 00:01:01]} Rd5 {[%clk 00:01:40]} {[%emt
00:00:22]} 71. Kb6 {[%clk 00:04:20]} {[%emt 00:00:06]} Rd1 {[%clk 00:00:56]}
{[%emt 00:01:14]} 72. c7 {[%clk 00:04:39]} {[%emt 00:00:12]} Rb1+ {[%clk
00:01:05]} {[%emt 00:00:22]} 73. Kxa5 {[%clk 00:05:00]} {[%emt 00:00:09]} 1-0

[Event "32nd NATO Chess Championship"]
[Site "Tartu, Estonia"]
[Date "2022.06.28"]
[Round "2.11"]
[White "Jauk, Wilhelm"]
[Black "Cheung, Jan"]
[Result "0-1"]
[TimeControl "90 min + 30 sec increment from move one"]
[WhiteFideId "24681067"]
[BlackFideId "1010735"]
[WhiteElo "2156"]
[BlackElo "1964"]

1. d4 {[%clk 01:30:56]} {[%emt 00:00:03]} Nf6 {[%clk 01:30:53]} {[%emt
00:00:07]} 2. Nf3 {[%clk 01:31:19]} {[%emt 00:00:07]} g6 {[%clk 01:31:17]}
{[%emt 00:00:07]} 3. c4 {[%clk 01:31:08]} {[%emt 00:00:41]} Bg7 {[%clk
01:23:49]} {[%emt 00:07:58]} 4. Nc3 {[%clk 01:30:36]} {[%emt 00:01:02]} d5
{[%clk 01:24:04]} {[%emt 00:00:14]} 5. cxd5 {[%clk 01:29:50]} {[%emt 00:01:17]}
Nxd5 {[%clk 01:24:27]} {[%emt 00:00:07]} 6. e4 {[%clk 01:30:11]} {[%emt
00:00:08]} Nxc3 {[%clk 01:24:52]} {[%emt 00:00:06]} 7. bxc3 {[%clk 01:30:37]}
{[%emt 00:00:04]} c5 {[%clk 01:25:05]} {[%emt 00:00:16]} 8. Be3 {[%clk
01:30:57]} {[%emt 00:00:09]} Qa5 {[%clk 01:24:13]} {[%emt 00:01:24]} 9. Qd2
{[%clk 01:30:33]} {[%emt 00:00:54]} O-O {[%clk 01:22:36]} {[%emt 00:02:07]} 10.
Rc1 {[%clk 01:30:09]} {[%emt 00:00:53]} Nd7 {[%clk 01:19:30]} {[%emt 00:03:36]}
11. Bd3 {[%clk 01:20:45]} {[%emt 00:09:54]} Nf6 {[%clk 01:16:58]} {[%emt
00:03:02]} 12. h3 {[%clk 01:11:24]} {[%emt 00:09:52]} b6 {[%clk 01:14:33]}
{[%emt 00:02:55]} 13. d5 {[%clk 01:05:47]} {[%emt 00:06:06]} c4 {[%clk
01:13:54]} {[%emt 00:01:10]} 14. Bb1 {[%clk 01:03:36]} {[%emt 00:02:40]} Bb7
{[%clk 01:13:43]} {[%emt 00:00:41]} 15. Nd4 {[%clk 01:01:12]} {[%emt 00:02:54]}
Rfd8 {[%clk 01:12:19]} {[%emt 00:01:54]} 16. Qe2 {[%clk 00:59:45]} {[%emt
00:01:58]} Rac8 {[%clk 01:12:26]} {[%emt 00:00:23]} 17. O-O {[%clk 00:59:48]}
{[%emt 00:00:26]} b5 {[%clk 01:00:59]} {[%emt 00:11:57]} 18. Qb2 {[%clk
00:58:22]} {[%emt 00:01:55]} a6 {[%clk 00:59:39]} {[%emt 00:01:52]} 19. Bc2
{[%clk 00:50:49]} {[%emt 00:08:02]} e6 {[%clk 00:56:31]} {[%emt 00:03:38]} 20.
dxe6 {[%clk 00:50:36]} {[%emt 00:00:43]} Nxe4 {[%clk 00:56:01]} {[%emt
00:01:00]} 21. exf7+ {[%clk 00:50:41]} {[%emt 00:00:25]} Kxf7 {[%clk 00:55:22]}
{[%emt 00:01:10]} 22. Bb1 {[%clk 00:38:15]} {[%emt 00:12:55]} Nxc3 {[%clk
00:45:39]} {[%emt 00:10:14]} 23. Rxc3 {[%clk 00:32:47]} {[%emt 00:05:58]} Bxd4
{[%clk 00:45:49]} {[%emt 00:00:19]} 24. Bxd4 {[%clk 00:33:01]} {[%emt
00:00:17]} Rxd4 {[%clk 00:46:12]} {[%emt 00:00:06]} 25. Rf3+ {[%clk 00:30:23]}
{[%emt 00:03:08]} Bxf3 {[%clk 00:46:26]} {[%emt 00:00:16]} 26. Qxd4 {[%clk
00:30:49]} {[%emt 00:00:04]} Bc6 {[%clk 00:44:24]} {[%emt 00:02:32]} 27. Rd1
{[%clk 00:18:45]} {[%emt 00:12:34]} Re8 {[%clk 00:41:42]} {[%emt 00:03:12]} 28.
Kh2 {[%clk 00:14:10]} {[%emt 00:05:05]} Qc7+ {[%clk 00:38:30]} {[%emt
00:03:41]} 29. f4 {[%clk 00:14:38]} {[%emt 00:00:03]} Re2 {[%clk 00:37:14]}
{[%emt 00:01:46]} 30. Rg1 {[%clk 00:14:40]} {[%emt 00:00:28]} g5 {[%clk
00:31:17]} {[%emt 00:06:27]} 31. Qc5 {[%clk 00:12:02]} {[%emt 00:03:08]} Qxf4+
{[%clk 00:29:18]} {[%emt 00:02:29]} 32. Kh1 {[%clk 00:12:30]} {[%emt 00:00:02]}
Rxg2 {[%clk 00:26:24]} {[%emt 00:03:24]} 33. Rxg2 {[%clk 00:10:09]} {[%emt
00:02:51]} Qf1+ {[%clk 00:26:47]} {[%emt 00:00:06]} 34. Qg1 {[%clk 00:10:35]}
{[%emt 00:00:05]} Bxg2+ {[%clk 00:27:07]} {[%emt 00:00:10]} 0-1

[Event "32nd NATO Chess Championship"]
[Site "Tartu, Estonia"]
[Date "2022.06.28"]
[Round "2.12"]
[White "Peraino, Andrew"]
[Black "Graczyk, Damian"]
[Result "0-1"]
[TimeControl "90 min + 30 sec increment from move one"]
[WhiteFideId "30936187"]
[BlackFideId "1170716"]
[WhiteElo "1940"]
[BlackElo "2151"]

1. e4 {[%clk 01:30:56]} {[%emt 00:00:03]} d5 {[%clk 01:30:31]} {[%emt
00:00:30]} 2. exd5 {[%clk 01:30:03]} {[%emt 00:01:23]} Qxd5 {[%clk 01:30:55]}
{[%emt 00:00:06]} 3. Nc3 {[%clk 01:30:13]} {[%emt 00:00:20]} Qd8 {[%clk
01:31:22]} {[%emt 00:00:03]} 4. g3 {[%clk 01:27:42]} {[%emt 00:03:01]} Nf6
{[%clk 01:31:42]} {[%emt 00:00:10]} 5. Bg2 {[%clk 01:28:00]} {[%emt 00:00:11]}
Nc6 {[%clk 01:28:39]} {[%emt 00:03:34]} 6. Nge2 {[%clk 01:26:48]} {[%emt
00:01:41]} e5 {[%clk 01:27:30]} {[%emt 00:01:39]} 7. d3 {[%clk 01:18:49]}
{[%emt 00:08:29]} Be7 {[%clk 01:26:34]} {[%emt 00:01:27]} 8. Bg5 {[%clk
01:17:49]} {[%emt 00:01:29]} O-O {[%clk 01:26:27]} {[%emt 00:00:37]} 9. Qd2
{[%clk 01:16:26]} {[%emt 00:01:54]} Be6 {[%clk 01:18:49]} {[%emt 00:08:07]} 10.
h3 {[%clk 01:10:33]} {[%emt 00:06:23]} Nd4 {[%clk 01:09:45]} {[%emt 00:09:35]}
11. O-O-O {[%clk 01:04:21]} {[%emt 00:06:42]} c5 {[%clk 01:08:39]} {[%emt
00:01:36]} 12. f4 {[%clk 00:56:52]} {[%emt 00:07:59]} exf4 {[%clk 00:58:21]}
{[%emt 00:10:48]} 13. Nxf4 {[%clk 00:56:51]} {[%emt 00:00:31]} Rb8 {[%clk
00:58:31]} {[%emt 00:00:19]} 14. g4 {[%clk 00:47:22]} {[%emt 00:09:59]} b5
{[%clk 00:57:55]} {[%emt 00:01:06]} 15. Nxe6 {[%clk 00:47:45]} {[%emt
00:00:07]} Nxe6 {[%clk 00:58:20]} {[%emt 00:00:05]} 16. Be3 {[%clk 00:47:57]}
{[%emt 00:00:19]} b4 {[%clk 00:51:20]} {[%emt 00:07:30]} 17. Ne2 {[%clk
00:47:25]} {[%emt 00:01:02]} Nd5 {[%clk 00:51:19]} {[%emt 00:00:31]} 18. Bxd5
{[%clk 00:45:34]} {[%emt 00:02:21]} Qxd5 {[%clk 00:51:31]} {[%emt 00:00:18]} 19.
Kb1 {[%clk 00:45:27]} {[%emt 00:00:37]} a5 {[%clk 00:47:10]} {[%emt 00:04:50]}
20. Rhf1 {[%clk 00:45:12]} {[%emt 00:00:45]} a4 {[%clk 00:43:43]} {[%emt
00:03:57]} 21. Rf5 {[%clk 00:43:12]} {[%emt 00:02:30]} Qb7 {[%clk 00:41:52]}
{[%emt 00:02:22]} 22. Rdf1 {[%clk 00:37:39]} {[%emt 00:06:02]} Rbd8 {[%clk
00:36:58]} {[%emt 00:05:25]} 23. Ng3 {[%clk 00:29:29]} {[%emt 00:08:40]} b3
{[%clk 00:33:07]} {[%emt 00:04:20]} 24. cxb3 {[%clk 00:28:55]} {[%emt
00:01:04]} axb3 {[%clk 00:33:33]} {[%emt 00:00:04]} 25. a3 {[%clk 00:29:13]}
{[%emt 00:00:12]} c4 {[%clk 00:33:45]} {[%emt 00:00:18]} 26. d4 {[%clk
00:29:08]} {[%emt 00:00:35]} Bh4 {[%clk 00:24:39]} {[%emt 00:09:36]} 27. Ne2
{[%clk 00:19:40]} {[%emt 00:09:58]} g6 {[%clk 00:21:49]} {[%emt 00:03:21]} 28.
R5f3 {[%clk 00:15:13]} {[%emt 00:04:56]} Rd7 {[%clk 00:16:42]} {[%emt
00:05:38]} 29. Nc3 {[%clk 00:13:20]} {[%emt 00:02:22]} Rfd8 {[%clk 00:16:46]}
{[%emt 00:00:26]} 30. d5 {[%clk 00:08:48]} {[%emt 00:05:02]} Nc7 {[%clk
00:16:28]} {[%emt 00:00:48]} 31. Bd4 {[%clk 00:08:34]} {[%emt 00:00:45]} Nxd5
{[%clk 00:15:20]} {[%emt 00:01:38]} 32. Qh6 {[%clk 00:05:31]} {[%emt 00:03:33]}
Nxc3+ {[%clk 00:15:48]} {[%emt 00:00:02]} 33. bxc3 {[%clk 00:05:48]} {[%emt
00:00:13]} Qe4+ {[%clk 00:15:52]} {[%emt 00:00:26]} 34. Ka1 {[%clk 00:06:00]}
{[%emt 00:00:17]} Rxd4 {[%clk 00:16:20]} {[%emt 00:00:02]} 35. cxd4 {[%clk
00:05:12]} {[%emt 00:01:18]} Qxd4+ {[%clk 00:16:29]} {[%emt 00:00:22]} 36. Kb1
{[%clk 00:05:30]} {[%emt 00:00:11]} Qe4+ {[%clk 00:15:52]} {[%emt 00:01:06]} 37.
Ka1 {[%clk 00:05:28]} {[%emt 00:00:34]} Qc2 {[%clk 00:15:05]} {[%emt 00:01:16]}
0-1

[Event "32nd NATO Chess Championship"]
[Site "Tartu, Estonia"]
[Date "2022.06.28"]
[Round "2.13"]
[White "Pavlidou, Ekaterini"]
[Black "Randall, Gordon"]
[Result "1-0"]
[TimeControl "90 min + 30 sec increment from move one"]
[WhiteTitle "WIM"]
[WhiteFideId "4213262"]
[BlackFideId "2056518"]
[WhiteElo "2146"]
[BlackElo "1954"]

1. d4 {[%clk 01:30:31]} {[%emt 00:00:27]} Nf6 {[%clk 01:30:47]} {[%emt
00:00:14]} 2. c4 {[%clk 01:30:45]} {[%emt 00:00:16]} c5 {[%clk 01:31:01]}
{[%emt 00:00:16]} 3. d5 {[%clk 01:31:06]} {[%emt 00:00:08]} e6 {[%clk
01:31:23]} {[%emt 00:00:09]} 4. Nc3 {[%clk 01:31:30]} {[%emt 00:00:06]} exd5
{[%clk 01:31:49]} {[%emt 00:00:04]} 5. cxd5 {[%clk 01:31:46]} {[%emt 00:00:13]}
d6 {[%clk 01:32:11]} {[%emt 00:00:09]} 6. Nf3 {[%clk 01:31:42]} {[%emt
00:00:33]} g6 {[%clk 01:32:15]} {[%emt 00:00:26]} 7. h3 {[%clk 01:32:03]}
{[%emt 00:00:09]} Bg7 {[%clk 01:32:16]} {[%emt 00:00:29]} 8. Bf4 {[%clk
01:32:21]} {[%emt 00:00:12]} O-O {[%clk 01:29:06]} {[%emt 00:03:41]} 9. e3
{[%clk 01:32:07]} {[%emt 00:00:44]} a6 {[%clk 01:24:28]} {[%emt 00:05:08]} 10.
a4 {[%clk 01:32:27]} {[%emt 00:00:10]} b6 {[%clk 01:18:40]} {[%emt 00:06:18]}
11. Nd2 {[%clk 01:30:28]} {[%emt 00:02:28]} Qc7 {[%clk 01:11:40]} {[%emt
00:07:31]} 12. Nc4 {[%clk 01:29:31]} {[%emt 00:01:26]} Ne8 {[%clk 01:07:32]}
{[%emt 00:04:38]} 13. Ne4 {[%clk 01:25:49]} {[%emt 00:04:11]} Be5 {[%clk
01:02:49]} {[%emt 00:05:15]} 14. Nxe5 {[%clk 01:23:51]} {[%emt 00:02:27]} dxe5
{[%clk 01:03:02]} {[%emt 00:00:18]} 15. Bh6 {[%clk 01:24:04]} {[%emt 00:00:16]}
Ng7 {[%clk 01:01:35]} {[%emt 00:01:58]} 16. Nf6+ {[%clk 01:06:50]} {[%emt
00:17:43]} Kh8 {[%clk 01:01:09]} {[%emt 00:00:55]} 17. Qf3 {[%clk 01:05:59]}
{[%emt 00:01:21]} Ra7 {[%clk 00:52:42]} {[%emt 00:08:58]} 18. g4 {[%clk
01:00:29]} {[%emt 00:06:00]} Qd6 {[%clk 00:46:37]} {[%emt 00:06:36]} 19. e4
{[%clk 00:52:13]} {[%emt 00:08:45]} Rc7 {[%clk 00:40:36]} {[%emt 00:06:31]} 20.
Be2 {[%clk 00:43:13]} {[%emt 00:09:30]} c4 {[%clk 00:34:36]} {[%emt 00:06:31]}
21. h4 {[%clk 00:34:50]} {[%emt 00:08:52]} Nd7 {[%clk 00:29:41]} {[%emt
00:05:24]} 22. g5 {[%clk 00:33:38]} {[%emt 00:01:43]} b5 {[%clk 00:28:06]}
{[%emt 00:02:06]} 23. h5 {[%clk 00:28:58]} {[%emt 00:05:09]} Nxf6 {[%clk
00:15:59]} {[%emt 00:12:37]} 24. Qxf6 {[%clk 00:28:12]} {[%emt 00:01:16]} Qb4+
{[%clk 00:15:24]} {[%emt 00:01:06]} 25. Kf1 {[%clk 00:28:34]} {[%emt 00:00:07]}
Rg8 {[%clk 00:15:31]} {[%emt 00:00:23]} 26. Bxg7+ {[%clk 00:28:55]} {[%emt
00:00:09]} Rxg7 {[%clk 00:15:43]} {[%emt 00:00:18]} 27. h6 {[%clk 00:29:22]}
{[%emt 00:00:03]} 1-0

[Event "32nd NATO Chess Championship"]
[Site "Tartu, Estonia"]
[Date "2022.06.28"]
[Round "2.14"]
[White "Pazeriene, Diana"]
[Black "Kedzierski, Slawomir"]
[Result "1/2-1/2"]
[TimeControl "90 min + 30 sec increment from move one"]
[WhiteFideId "12802190"]
[BlackFideId "1134949"]
[WhiteElo "1930"]
[BlackElo "2133"]

1. d4 {[%clk 01:30:57]} {[%emt 00:00:03]} Nf6 {[%clk 01:30:53]} {[%emt
00:00:08]} 2. c4 {[%clk 01:31:17]} {[%emt 00:00:09]} e6 {[%clk 01:31:16]}
{[%emt 00:00:07]} 3. Nf3 {[%clk 01:31:24]} {[%emt 00:00:23]} b6 {[%clk
01:31:23]} {[%emt 00:00:23]} 4. Nc3 {[%clk 01:30:35]} {[%emt 00:01:19]} Bb7
{[%clk 01:31:42]} {[%emt 00:00:11]} 5. Bg5 {[%clk 01:29:00]} {[%emt 00:02:06]}
Be7 {[%clk 01:29:48]} {[%emt 00:02:23]} 6. e3 {[%clk 01:25:41]} {[%emt
00:03:49]} O-O {[%clk 01:29:59]} {[%emt 00:00:18]} 7. Be2 {[%clk 01:22:37]}
{[%emt 00:03:35]} h6 {[%clk 01:30:06]} {[%emt 00:00:22]} 8. Bxf6 {[%clk
01:17:10]} {[%emt 00:05:58]} Bxf6 {[%clk 01:29:39]} {[%emt 00:00:57]} 9. O-O
{[%clk 01:17:12]} {[%emt 00:00:29]} d5 {[%clk 01:27:08]} {[%emt 00:02:59]} 10.
cxd5 {[%clk 01:16:01]} {[%emt 00:01:42]} exd5 {[%clk 01:27:32]} {[%emt
00:00:06]} 11. Qb3 {[%clk 01:16:18]} {[%emt 00:00:13]} c6 {[%clk 01:26:48]}
{[%emt 00:01:13]} 12. Rfe1 {[%clk 01:11:12]} {[%emt 00:05:37]} Nd7 {[%clk
01:27:04]} {[%emt 00:00:14]} 13. Bd3 {[%clk 00:57:55]} {[%emt 00:13:46]} Re8
{[%clk 01:22:28]} {[%emt 00:05:06]} 14. e4 {[%clk 00:52:29]} {[%emt 00:05:58]}
dxe4 {[%clk 01:20:10]} {[%emt 00:02:48]} 15. Nxe4 {[%clk 00:52:35]} {[%emt
00:00:24]} Be7 {[%clk 01:20:16]} {[%emt 00:00:23]} 16. Bc4 {[%clk 00:50:01]}
{[%emt 00:03:05]} Rf8 {[%clk 01:20:15]} {[%emt 00:00:29]} 17. Rad1 {[%clk
00:37:36]} {[%emt 00:12:56]} Nf6 {[%clk 01:15:18]} {[%emt 00:05:26]} 18. Ne5
{[%clk 00:28:44]} {[%emt 00:09:23]} Nd5 {[%clk 01:13:55]} {[%emt 00:01:53]} 19.
Nc3 {[%clk 00:21:46]} {[%emt 00:07:28]} Rc8 {[%clk 00:54:52]} {[%emt 00:19:32]}
20. Nxc6 {[%clk 00:19:16]} {[%emt 00:03:00]} Bxc6 {[%clk 00:51:48]} {[%emt
00:03:34]} 21. Bxd5 {[%clk 00:17:14]} {[%emt 00:02:33]} Bxd5 {[%clk 00:47:00]}
{[%emt 00:05:17]} 22. Nxd5 {[%clk 00:17:19]} {[%emt 00:00:26]} Bd6 {[%clk
00:45:54]} {[%emt 00:01:36]} 23. Ne3 {[%clk 00:16:11]} {[%emt 00:01:38]} Qh4
{[%clk 00:42:52]} {[%emt 00:03:31]} 24. g3 {[%clk 00:14:59]} {[%emt 00:01:42]}
Qh3 {[%clk 00:41:03]} {[%emt 00:02:19]} 25. Nc4 {[%clk 00:14:56]} {[%emt
00:00:34]} Rcd8 {[%clk 00:35:05]} {[%emt 00:06:28]} 26. Nxd6 {[%clk 00:14:17]}
{[%emt 00:01:09]} Rxd6 {[%clk 00:34:49]} {[%emt 00:00:45]} 27. Rd3 {[%clk
00:13:25]} {[%emt 00:01:23]} Qd7 {[%clk 00:33:45]} {[%emt 00:01:33]} 28. Red1
{[%clk 00:12:14]} {[%emt 00:01:41]} Rd5 {[%clk 00:31:57]} {[%emt 00:02:18]} 29.
h4 {[%clk 00:12:11]} {[%emt 00:00:34]} Rd8 {[%clk 00:32:21]} {[%emt 00:00:06]}
30. Qc3 {[%clk 00:12:21]} {[%emt 00:00:20]} Qh3 {[%clk 00:29:24]} {[%emt
00:03:26]} 31. Qc7 {[%clk 00:10:50]} {[%emt 00:02:01]} R8d7 {[%clk 00:24:02]}
{[%emt 00:05:53]} 32. Qb8+ {[%clk 00:09:54]} {[%emt 00:01:24]} Kh7 {[%clk
00:23:45]} {[%emt 00:00:48]} 33. Qf4 {[%clk 00:08:48]} {[%emt 00:01:36]} g5
{[%clk 00:13:10]} {[%emt 00:11:06]} 34. hxg5 {[%clk 00:08:24]} {[%emt
00:00:54]} hxg5 {[%clk 00:08:04]} {[%emt 00:05:36]} 35. Qe4+ {[%clk 00:08:20]}
{[%emt 00:00:34]} Kg7 {[%clk 00:07:53]} {[%emt 00:00:40]} 36. g4 {[%clk
00:04:18]} {[%emt 00:04:33]} Qh6 {[%clk 00:03:44]} {[%emt 00:04:38]} 1/2-1/2